bitfinex/quotes_ETHUSD_20241129
["timestamp","ask_amount","ask_price","bid_price","bid_amount"]
[1732858532084,0.55,3590.1,3590.0,0.07638235]
[1732858535725,0.55,3590.3,3590.0,2.78551]
[1732858535846,0.55,3590.3,3590.0,2.86186335]
[1732858536043,0.55,3590.3,3590.0,5.64737335]
[1732858536354,0.55,3590.3,3590.0,2.86186335]
[1732858536554,0.55,3590.6,3590.2,2.78536]
[1732858536761,0.55,3590.6,3590.3,0.07619806]
[1732858536962,0.55,3590.6,3590.0,0.7936]
[1732858537138,0.55,3590.4,3590.1,0.07623776]
[1732858537338,0.55,3590.4,3589.9,2.78553]
[1732858537539,0.55,3590.4,3590.0,0.07625761]
[1732858537763,0.55,3590.2,3590.0,0.07625761]
[1732858538068,0.55,3590.2,3589.8,2.78565]
[1732858538275,0.55,3590.2,3590.1,0.07623776]
[1732858538778,0.55,3590.2,3589.9,2.78559]
[1732858539070,0.55,3590.2,3590.0,0.07625761]
[1732858542053,0.96355,3590.2,3589.5,2.78583]
[1732858542253,0.96355,3590.2,3590.1,0.07623776]
[1732858542453,0.9776776,3590.2,3589.5,2.78583]
[1732858542683,3.7630376,3590.2,3590.1,0.07623776]
[1732858542879,0.55,3589.8,3589.3,2.78604]
[1732858543097,0.0141276,3589.7,3588.7,0.7576]
[1732858543255,3.55,3589.3,3588.6,2.78659]
[1732858543859,0.55,3589.1,3588.6,2.78659]
[1732858544054,0.55,3589.1,3588.1,1.230581]
[1732858544268,0.55,3589.1,3588.2,0.7576]
[1732858544474,0.55,3589.1,3588.7,2.78646]
[1732858544678,0.55,3589.1,3588.5,2.78667]
[1732858544679,0.55,3589.1,3588.8,2.78643]
[1732858546498,0.55,3589.1,3588.9,2.78636]
[1732858546689,0.55,3589.4,3588.9,2.78636]
[1732858546890,0.55,3589.4,3589.0,2.78627]
[1732858547388,0.55,3589.4,3589.1,2.78614]
[1732858551585,0.55,3589.6,3589.1,2.78614]
[1732858552775,0.55,3589.7,3589.2,2.78611]
[1732858553664,4.3828,3589.5,3589.3,0.07275555]
[1732858553962,4.3828,3589.5,3589.0,2.78626]
[1732858554169,1.3828,3589.5,3589.1,0.07279528]
[1732858555293,1.3828,3589.5,3589.1,2.85900528]
[1732858556397,1.3828,3589.5,3589.1,0.07279528]
[1732858556607,4.3828,3589.5,3589.1,0.07279528]
[1732858556785,4.3828,3589.5,3589.2,0.07277542]
[1732858557210,4.3828,3589.5,3589.3,0.07275555]
[1732858557722,4.3828,3589.5,3589.4,0.07273569]
[1732858558017,4.3828,3589.5,3589.0,2.78628]
[1732858558607,4.3828,3589.5,3589.1,0.07279528]
[1732858559131,1.3828,3589.5,3589.1,0.07279528]
[1732858560613,1.3828,3589.5,3589.1,2.85893528]
[1732858560935,0.55,3589.5,3589.1,0.07279528]
[1732858561234,3.55,3589.6,3588.9,2.78635]
[1732858561405,3.55,3589.6,3589.0,0.07281514]
[1732858561608,3.55,3589.6,3589.0,2.85910514]
[1732858562004,3.55,3589.6,3589.1,2.78621]
[1732858562541,3.55,3589.6,3589.2,0.07278702]
[1732858563248,0.55,3589.6,3589.2,0.07278702]
[1732858563741,0.55,3589.6,3589.2,2.78611]
[1732858564089,0.55,3589.6,3589.3,0.07276715]
[1732858564319,0.55,3589.6,3589.4,2.78597]
[1732858564508,0.55,3589.6,3589.4,2.85871729]
[1732858566541,0.55,3589.6,3589.5,2.7859]
[1732858566893,0.55,3589.6,3589.5,2.85862743]
[1732858571640,0.55,3589.6,3589.5,3.68822743]
[1732858571952,0.55,3590.3,3590.0,2.78549]
[1732858572319,0.55,3590.3,3590.1,0.07243425]
[1732858572742,0.55,3590.3,3589.8,2.78565]
[1732858572948,0.55,3590.3,3590.2,0.07218525]
[1732858573133,0.55,3590.3,3589.8,2.78565]
[1732858573366,0.55,3590.3,3590.2,0.07218525]
[1732858573659,3.33528,3590.3,3590.2,0.07217945]
[1732858573963,0.55,3590.3,3589.6,2.78578]
[1732858574122,3.33528,3590.3,3590.2,0.07217945]
[1732858574455,3.33528,3590.3,3589.6,2.78578]
[1732858574758,3.33528,3590.3,3589.7,0.07229033]
[1732858575419,3.33528,3590.3,3589.7,2.85801033]
[1732858576259,0.55,3590.3,3589.7,2.85801033]
[1732858576565,0.55,3590.3,3589.8,2.78566]
[1732858576764,0.55,3590.3,3589.8,2.85793047]
[1732858577064,0.55,3590.3,3589.8,3.57260355]
[1732858578280,0.55,3590.3,3589.8,0.78694355]
[1732858578777,0.55,3590.1,3589.8,0.07227047]
[1732858579182,0.55,3590.3,3589.5,0.8296]
[1732858579333,0.55,3590.3,3589.9,0.07225061]
[1732858579334,2.78537,3590.2,3589.9,0.07225061]
[1732858579540,0.55,3590.3,3589.6,2.78579]
[1732858579742,0.55,3590.3,3590.0,0.07223076]
[1732858580046,0.55,3590.3,3590.1,0.07221091]
[1732858580241,0.55,3590.3,3589.6,2.78579]
[1732858580580,0.55,3590.3,3589.7,0.71242633]
[1732858581878,0.55,3590.3,3589.8,0.02785361]
[1732858582187,0.55,3590.3,3589.7,3.49816633]
[1732858582188,0.8243,3590.8,3590.0,0.7733]
[1732858582343,0.8243,3590.8,3590.4,2.78518]
[1732858582743,0.8243,3590.8,3590.5,0.07213151]
[1732858582944,0.8243,3590.8,3590.2,2.78534]
[1732858583167,0.8243,3590.8,3590.6,0.07211166]
[1732858583343,0.8243,3590.8,3590.4,2.78519]
[1732858583556,0.55,3590.7,3590.4,2.78519]
[1732858583955,0.55,3590.7,3590.6,2.78504]
[1732858584185,0.55,3591.0,3590.7,2.78494]
[1732858585154,0.55,3591.0,3590.6,2.78504]
[1732858585355,0.55,3591.0,3590.7,2.78491]
[1732858585555,0.55,3591.0,3590.8,2.78486]
[1732858586079,0.55,3591.0,3590.6,2.78499]
[1732858586294,0.55,3591.0,3590.6,0.640096]
[1732858587489,0.55,3591.0,3590.6,3.425126]
[1732858587688,0.55,3591.0,3590.7,2.78495]
[1732858587850,0.55,3591.0,3590.6,0.640096]
[1732858589363,0.55,3591.0,3590.6,3.425106]
[1732858589685,3.60565,3590.8,3590.0,2.78544]
[1732858589986,0.55,3590.6,3590.0,2.78545]
[1732858590585,0.7812,3590.5,3589.6,2.78581]
[1732858590790,0.7812,3590.1,3589.6,2.78581]
[1732858591089,0.7812,3590.1,3589.6,3.342988]
[1732858591090,0.55,3590.0,3589.6,3.342988]
[1732858591556,0.55,3590.0,3589.7,2.78568]
[1732858594088,0.55,3590.3,3589.9,2.78559]
[1732858594297,0.55,3590.3,3590.0,2.7855]
[1732858597188,0.55,3590.6,3589.8,0.41757125]
[1732858597385,0.55,3590.6,3589.7,0.805]
[1732858597611,0.55,3590.6,3590.2,2.78536]
[1732858597826,0.55,3590.6,3590.4,2.78514]
[1732858598124,3.7675,3591.1,3590.4,2.78518]
[1732858598329,3.55217,3591.1,3590.4,2.78518]
[1732858598528,3.0,3591.0,3590.5,0.06956917]
[1732858598718,3.0,3591.0,3590.4,2.78518]
[1732858598918,0.7675,3591.1,3590.2,3.60294]
[1732858599114,0.7675,3591.1,3590.5,0.06956917]
[1732858599305,0.7675,3591.1,3590.4,2.78514]
[1732858599306,0.55,3591.0,3590.4,2.78514]
[1732858599504,3.5641276,3591.0,3590.1,2.78543]
[1732858599813,1.3582,3590.7,3590.5,0.06956917]
[1732858600126,1.3582,3590.7,3590.6,0.06954933]
[1732858600328,1.3582,3590.7,3590.2,2.78535]
[1732858600624,1.3582,3590.7,3590.6,0.06954933]
[1732858600823,4.1432,3590.7,3590.0,2.78545]
[1732858601031,0.8319,3590.4,3589.9,2.78558]
[1732858601229,0.55,3590.3,3590.1,0.06964858]
[1732858601530,0.55,3590.3,3590.2,0.06962872]
[1732858601726,0.55,3590.3,3589.9,2.78558]
[1732858602042,0.55,3590.3,3590.2,0.06962872]
[1732858602197,0.55,3590.3,3589.9,2.78558]
[1732858602394,0.55,3590.3,3590.2,0.06962872]
[1732858602902,0.55,3590.6,3590.0,2.78551]
[1732858603238,1.3722,3590.8,3590.3,2.78524]
[1732858603445,1.3722,3590.8,3590.2,2.78528]
[1732858603738,1.3722,3590.8,3590.3,0.06960887]
[1732858603944,1.3722,3590.8,3590.2,2.78528]
[1732858604127,1.3722,3590.8,3590.4,0.06958902]
[1732858604327,1.3722,3590.8,3590.2,2.78528]
[1732858604553,1.3722,3590.8,3590.5,0.06956917]
[1732858604758,1.3722,3590.8,3590.2,2.78528]
[1732858604910,1.3722,3590.8,3590.6,0.06954933]
[1732858605344,1.3722,3590.8,3590.2,2.78528]
[1732858605546,1.3722,3590.8,3590.7,0.06952948]
[1732858605731,1.3722,3590.8,3590.2,2.78528]
[1732858605926,1.3722,3590.8,3590.7,0.06952948]
[1732858606146,1.3722,3590.8,3590.2,2.78528]
[1732858606147,4.15709,3590.8,3590.1,0.755]
[1732858606348,4.15709,3590.8,3590.7,0.06952948]
[1732858606507,4.15709,3590.8,3590.0,2.7855]
[1732858606707,4.15709,3590.8,3590.7,0.06952948]
[1732858606942,1.3722,3590.8,3590.1,2.78537]
[1732858607165,1.3722,3590.8,3590.7,0.06952948]
[1732858607450,1.3722,3590.8,3590.2,2.7853]
[1732858607743,1.3722,3590.8,3590.3,2.81308069]
[1732858607949,1.3722,3590.8,3590.3,2.81307977]
[1732858608123,1.3722,3590.8,3590.4,0.06958902]
[1732858609835,0.55,3591.0,3590.5,0.774]
[1732858610255,3.7637,3591.1,3590.7,2.78495]
[1732858610256,0.7637,3591.1,3590.7,2.78495]
[1732858610769,0.7637,3591.1,3590.8,0.06942264]
[1732858611016,0.7637,3591.1,3590.5,3.55912]
[1732858611220,0.7637,3591.1,3590.9,0.06940279]
[1732858611386,0.7637,3591.1,3590.5,3.55912]
[1732858611586,0.55,3591.0,3590.5,2.78512]
[1732858612406,0.55,3591.0,3590.3,3.58257]
[1732858612627,0.55,3591.0,3590.3,0.636799]
[1732858612628,3.55,3591.0,3590.3,0.636799]
[1732858612780,3.33477,3591.0,3590.3,0.636799]
[1732858613135,3.33505,3590.6,3589.9,2.78552]
[1732858613620,3.33505,3590.6,3590.0,2.85507143]
[1732858614522,0.55,3590.6,3590.0,2.85507143]
[1732858614733,0.55,3590.6,3590.1,2.78542]
[1732858614942,0.55,3590.6,3590.1,3.41905061]
[1732858616596,0.55,3590.6,3590.1,0.63363061]
[1732858616817,3.33505,3590.6,3590.1,0.06956447]
[1732858617138,0.55,3590.6,3590.0,2.78545]
[1732858617345,0.55,3590.6,3590.2,0.06954462]
[1732858617508,0.55,3590.6,3590.0,2.78545]
[1732858617705,0.55,3590.6,3590.1,0.06956447]
[1732858618306,3.33506,3590.6,3590.1,0.06956447]
[1732858619203,0.55,3590.6,3590.1,0.06956447]
[1732858623019,3.33509,3590.6,3590.1,0.06956447]
[1732858623486,3.33509,3590.6,3589.9,2.78559]
[1732858623665,3.33509,3590.6,3590.2,0.06958232]
[1732858623874,0.55,3590.3,3589.6,0.7652]
[1732858624167,0.55,3590.1,3589.8,2.78565]
[1732858625671,0.55,3590.4,3589.9,3.57285]
[1732858625824,0.55,3590.4,3589.9,3.60070254]
[1732858626168,0.55,3590.4,3589.9,3.57285]
[1732858626377,0.55,3590.4,3589.9,2.78555]
[1732858627931,0.55,3590.4,3590.0,0.02785299]
[1732858628145,0.55,3590.7,3590.1,3.60827]
[1732858628564,0.55,3590.7,3590.2,0.06959972]
[1732858629372,0.7562,3590.8,3590.2,0.06959972]
[1732858629575,5.78458,3591.2,3590.5,2.78505]
[1732858629804,0.7744,3591.1,3590.5,2.78505]
[1732858630001,0.7744,3591.1,3590.6,0.06947393]
[1732858630513,2.78421,3591.7,3590.7,4.01510959]
[1732858630656,2.78348,3592.7,3591.2,2.78457]
[1732858630657,0.7823,3591.6,3591.2,2.78457]
[1732858630863,0.7823,3591.6,3591.1,2.78462]
[1732858631099,0.7823,3591.6,3591.3,0.06919877]
[1732858631303,0.278348,3592.6,3591.3,0.06919877]
[1732858631304,0.797,3592.0,3591.7,2.78413]
[1732858631507,3.061898,3592.6,3591.9,0.7958]
[1732858631508,2.78358,3592.5,3591.9,0.7958]
[1732858631663,2.78301,3593.3,3591.9,0.7958]
[1732858631664,0.7696,3593.6,3592.4,2.78363]
[1732858631865,2.78302,3593.3,3592.4,2.78363]
[1732858632164,2.78287,3593.4,3592.5,0.0685869]
[1732858632373,0.7696,3593.2,3591.9,0.7958]
[1732858632571,2.78356,3592.6,3591.7,2.78412]
[1732858632806,3.5678,3592.5,3592.0,0.06620694]
[1732858633110,3.5819276,3592.5,3591.7,2.78412]
[1732858633260,0.7842,3592.5,3591.9,2.78396]
[1732858633464,0.55,3592.4,3592.1,2.78387]
[1732858633802,3.55,3592.7,3592.2,0.06597652]
[1732858634006,3.55,3592.7,3591.9,2.78396]
[1732858634304,3.55,3592.7,3592.3,0.06595669]
[1732858634458,3.55,3592.7,3592.0,2.78395]
[1732858634658,0.55,3592.5,3592.4,0.06593686]
[1732858635003,0.55,3592.3,3591.9,2.78397]
[1732858635206,0.55,3592.5,3591.9,2.78397]
[1732858635509,0.5641276,3592.5,3591.9,2.78397]
[1732858635817,3.5641276,3592.5,3591.9,2.78397]
[1732858635964,0.55,3592.3,3591.9,2.78397]
[1732858636165,0.55,3592.3,3591.7,2.78418]
[1732858636502,0.55,3592.3,3591.6,0.7603]
[1732858637561,0.55,3592.3,3591.8,2.78411]
[1732858638407,0.55,3592.4,3591.8,2.78411]
[1732858638763,0.55,3592.6,3591.8,2.78411]
[1732858638967,1.3198,3592.2,3591.2,0.7572]
[1732858639163,1.3198,3592.2,3591.5,2.78427]
[1732858639164,4.3198,3592.2,3591.5,2.78427]
[1732858639477,4.3198,3592.2,3591.3,2.81232916]
[1732858639478,0.55,3591.9,3591.3,2.81232916]
[1732858639989,0.55,3592.1,3591.5,2.78434]
[1732858640410,0.55,3592.1,3591.4,0.02784116]
[1732858640584,0.55,3592.1,3591.4,2.78435]
[1732858641008,3.55,3592.1,3591.5,2.78433]
[1732858641169,0.55,3592.1,3591.5,2.78433]
[1732858641381,0.55,3592.1,3591.6,2.78424]
[1732858642714,0.55,3592.1,3591.3,2.78443]
[1732858642921,0.55,3592.1,3591.4,2.78437]
[1732858643281,0.55,3592.1,3591.5,2.78429]
[1732858643688,0.55,3592.1,3591.6,0.06614175]
[1732858644006,0.55,3592.1,3591.6,2.78425]
[1732858644213,0.55,3592.1,3591.7,0.06612192]
[1732858646382,3.0,3592.0,3591.4,2.78442]
[1732858646577,0.55,3591.9,3591.8,0.06610209]
[1732858646808,0.55,3591.9,3591.1,2.78464]
[1732858646809,2.78412,3591.8,3591.1,2.78464]
[1732858646992,0.7737,3591.6,3591.1,2.78464]
[1732858647519,0.55,3591.7,3591.2,2.78457]
[1732858647815,0.55,3591.9,3591.3,2.81228218]
[1732858648404,0.55,3591.9,3591.4,2.78438]
[1732858649610,0.55,3591.9,3591.4,2.81222133]
[1732858649799,0.55,3591.9,3591.4,2.78438]
[1732858650349,3.0,3592.3,3591.7,2.78417]
[1732858650652,3.33383,3592.2,3591.5,3.59599]
[1732858650798,0.55,3592.0,3591.5,3.59599]
[1732858651004,0.7876,3591.9,3591.5,2.78429]
[1732858651452,0.55,3592.0,3591.6,2.78426]
[1732858651599,0.55,3592.1,3591.7,2.78412]
[1732858652706,0.55,3592.1,3591.5,2.78432]
[1732858652896,0.55,3592.1,3591.5,2.78434]
[1732858653302,0.55,3592.1,3591.2,0.7839]
[1732858653538,0.7939,3592.5,3592.2,2.7838]
[1732858653742,0.7939,3592.5,3591.8,2.78405]
[1732858654299,0.7939,3592.5,3591.6,2.78427]
[1732858654300,3.57755,3592.5,3591.6,2.78427]
[1732858654504,2.7838,3592.3,3591.6,2.78427]
[1732858654727,2.7838,3592.3,3591.6,3.37438026]
[1732858655046,0.55,3592.2,3591.6,3.37438026]
[1732858656554,3.57755,3592.5,3591.9,2.78402]
[1732858656555,0.55,3592.4,3591.9,2.78402]
[1732858657642,0.55,3592.4,3591.8,3.55158]
[1732858657843,0.55,3592.4,3591.8,2.78408]
[1732858658201,0.55,3592.4,3591.8,3.47667503]
[1732858658649,0.55,3592.4,3591.9,2.8500271]
[1732858659943,3.33371,3592.4,3591.9,0.0660071]
[1732858660153,0.55,3592.4,3591.7,2.81202928]
[1732858660451,0.55,3592.4,3592.0,0.06595548]
[1732858660602,0.55,3592.4,3591.8,2.78409]
[1732858660803,0.5641276,3592.4,3592.1,0.06593565]
[1732858660998,0.55,3592.1,3591.4,2.78441]
[1732858661410,0.55,3592.1,3591.5,2.78434]
[1732858661615,3.33389,3592.1,3591.2,3.57947]
[1732858662004,0.55,3592.1,3591.6,2.78426]
[1732858662430,0.55,3592.1,3591.6,3.341136]
[1732858662839,0.55,3592.1,3590.9,3.3413172]
[1732858662840,0.55,3591.8,3590.6,2.78503]
[1732858663038,0.55,3591.8,3590.9,2.78479]
[1732858663039,0.55,3591.3,3590.9,2.78479]
[1732858663201,0.55,3591.3,3590.7,2.78493]
[1732858663406,0.55,3591.3,3590.7,3.142913]
[1732858663636,0.55,3591.3,3590.8,2.78489]
[1732858664012,0.55,3591.3,3590.9,2.78481]
[1732858664218,0.55,3591.3,3590.7,0.357983]
[1732858664617,3.33453,3591.3,3590.7,0.357983]
[1732858664843,3.0,3591.2,3590.6,2.78504]
[1732858665345,0.55,3591.3,3590.7,2.78489]
[1732858665549,0.55,3591.3,3590.7,2.78495]
[1732858666047,0.55,3591.3,3590.8,2.78487]
[1732858666618,0.55,3591.3,3590.9,2.78479]
[1732858666937,0.55,3591.3,3591.1,2.78465]
[1732858667248,0.55,3591.9,3591.3,2.78445]
[1732858667490,3.55,3592.0,3591.3,2.78445]
[1732858667793,0.55,3591.8,3591.1,2.78466]
[1732858667946,0.55,3591.8,3591.1,3.4487939]
[1732858668656,0.7812,3591.7,3591.1,3.4487939]
[1732858668891,0.5641276,3591.6,3590.9,3.063279]
[1732858669183,0.55,3591.4,3590.9,3.063279]
[1732858669366,0.55,3591.4,3590.9,0.278479]
[1732858669540,0.7785,3591.3,3590.9,2.78475]
[1732858669745,0.7785,3591.3,3590.5,0.754]
[1732858669746,1.3392,3591.5,3591.0,2.78473]
[1732858669954,1.3392,3591.5,3591.2,2.78457]
[1732858670151,0.55,3591.5,3591.2,2.78457]
[1732858670389,0.55,3591.6,3591.3,0.360367]
[1732858670592,0.55,3591.6,3591.2,2.78457]
[1732858672389,0.55,3591.6,3591.0,3.60383]
[1732858672887,0.55,3591.6,3591.0,2.78473]
[1732858673685,0.55,3591.6,3591.1,0.06651557]
[1732858674036,0.55,3591.6,3591.1,2.85116557]
[1732858674442,0.55,3591.6,3591.1,0.06651557]
[1732858674683,0.55,3591.4,3590.9,2.7848]
[1732858674891,0.55,3591.4,3591.2,0.06649572]
[1732858675085,0.55,3591.4,3591.0,2.78466]
[1732858675288,0.55,3591.4,3591.3,0.06647588]
[1732858675453,0.55,3591.4,3591.0,2.78466]
[1732858676000,0.55,3591.4,3591.2,2.78454]
[1732858676446,0.55,3591.4,3591.3,0.06647878]
[1732858678086,0.55,3591.7,3591.3,0.06647878]
[1732858678391,1.3682,3591.7,3591.3,0.06647878]
[1732858679201,4.3682,3591.7,3591.3,0.06647878]
[1732858679351,3.59369,3591.4,3590.6,2.78501]
[1732858679551,3.3345,3591.3,3590.7,0.06657471]
[1732858679876,0.55,3591.1,3590.7,0.06657471]
[1732858680262,0.55,3591.1,3590.5,2.78512]
[1732858680473,0.55,3591.1,3590.6,2.78504]
[1732858680696,0.55,3591.1,3590.7,2.78496]
[1732858680874,0.55,3591.1,3590.6,0.06669286]
[1732858681054,0.55,3591.1,3590.8,0.06665896]
[1732858681249,0.55,3591.1,3590.3,2.78527]
[1732858681487,2.78511,3590.6,3589.9,2.78559]
[1732858681686,0.55,3590.5,3589.9,2.78559]
[1732858682190,0.55,3590.6,3589.6,0.7944]
[1732858682364,3.55,3590.6,3589.8,2.78567]
[1732858682691,6.33504,3590.6,3589.9,2.78559]
[1732858682995,6.33504,3590.6,3589.6,3.58021]
[1732858682996,0.55,3590.6,3590.0,2.78551]
[1732858683150,0.55,3590.6,3590.2,2.78535]
[1732858683548,0.55,3590.6,3590.3,2.78524]
[1732858683751,0.55,3590.6,3590.1,2.78542]
[1732858686197,0.55,3590.6,3589.9,2.78557]
[1732858686395,3.55,3590.6,3589.9,2.78557]
[1732858687052,3.33505,3590.6,3589.9,2.78557]
[1732858687248,0.55,3590.4,3589.9,2.78557]
[1732858687491,0.55,3590.4,3589.8,2.78567]
[1732858688055,0.55,3590.4,3589.9,0.06707767]
[1732858689097,0.7648,3590.3,3589.9,0.06707767]
[1732858689293,0.55,3590.2,3589.9,0.06707767]
[1732858689696,0.55,3590.2,3589.6,2.7858]
[1732858690294,0.55,3590.2,3589.7,0.06750783]
[1732858690508,0.55,3590.0,3589.7,0.06750783]
[1732858690851,0.55,3590.0,3589.5,2.78588]
[1732858691057,0.55,3590.0,3589.8,0.06750823]
[1732858691284,0.55,3590.0,3589.6,2.78581]
[1732858691485,0.55,3590.0,3589.9,0.06748837]
[1732858691687,0.55,3590.0,3589.4,2.78597]
[1732858691897,0.55,3590.0,3589.1,0.8228]
[1732858691898,0.55,3590.0,3589.9,0.06750863]
[1732858692098,0.55,3590.0,3589.7,2.78572]
[1732858692314,0.55,3590.0,3589.9,0.06750863]
[1732858692602,0.55,3590.0,3589.9,2.85311599]
[1732858693158,0.7512,3590.4,3589.9,2.85311599]
[1732858693401,0.55,3590.3,3590.1,2.78543]
[1732858693674,0.7512,3590.9,3590.0,0.09535823]
[1732858693836,0.7512,3590.9,3590.5,2.78506]
[1732858694033,4.0,3590.6,3590.5,2.78506]
[1732858694180,4.0,3590.6,3590.5,3.422186]
[1732858694680,0.7597,3591.0,3590.5,3.422186]
[1732858694885,0.7597,3591.0,3590.5,2.78506]
[1732858695076,0.7597,3591.0,3590.6,2.78503]
[1732858695720,0.55,3590.9,3590.6,2.78503]
[1732858695879,0.55,3591.2,3590.8,2.78482]
[1732858696708,0.55,3591.2,3590.6,2.78501]
[1732858697023,3.3487876,3591.2,3590.5,2.78512]
[1732858697195,0.55,3591.0,3590.2,2.78528]
[1732858697404,0.55,3591.0,3590.4,2.78514]
[1732858697808,0.55,3591.0,3590.3,0.356348]
[1732858698003,0.55,3591.0,3590.3,2.78528]
[1732858698215,0.55,3591.0,3590.6,2.78503]
[1732858699251,0.55,3591.0,3590.0,0.7782]
[1732858699539,0.55,3591.0,3590.7,2.78495]
[1732858699706,0.55,3591.0,3590.8,2.78488]
[1732858699912,5.78441,3591.5,3590.8,2.78488]
[1732858699913,0.55,3591.3,3590.8,3.42485772]
[1732858700112,0.55,3591.3,3590.8,2.78488]
[1732858700308,0.55,3591.3,3590.9,2.78475]
[1732858703746,0.55,3591.3,3591.0,0.06675228]
[1732858705249,0.805,3591.2,3591.0,0.06675228]
[1732858705406,0.55,3591.0,3590.5,2.7851]
[1732858705942,0.55,3591.1,3590.5,2.7851]
[1732858706450,0.55,3591.1,3590.9,2.78481]
[1732858706739,0.55,3591.3,3590.8,2.8127161]
[1732858707148,1.3688,3591.6,3590.8,0.02784589]
[1732858707848,4.3688,3591.6,3591.0,2.78468]
[1732858708141,4.3688,3591.6,3591.0,2.81252488]
[1732858708529,4.3688,3591.6,3590.8,2.81273436]
[1732858708735,4.3688,3591.6,3591.1,2.78466]
[1732858709353,1.3688,3591.6,3591.1,2.78466]
[1732858709535,0.55,3591.6,3591.4,2.78436]
[1732858709843,0.7798,3592.0,3591.4,2.78436]
[1732858709844,0.7798,3592.0,3591.5,2.78429]
[1732858710208,0.7798,3592.0,3591.6,2.81210007]
[1732858710410,0.7798,3592.0,3591.6,2.78426]
[1732858710630,0.7798,3592.0,3591.4,2.78439]
[1732858710831,0.7798,3592.0,3591.3,3.6017]
[1732858711240,0.7798,3592.0,3591.4,2.7844]
[1732858711621,0.55,3591.9,3591.4,2.78436]
[1732858711803,0.55,3591.9,3591.4,3.422974]
[1732858712249,0.55,3591.9,3591.5,2.78434]
[1732858712710,0.55,3591.9,3591.5,5.56868]
[1732858712911,0.55,3591.9,3591.8,2.78411]
[1732858713138,0.55,3592.2,3591.9,2.78398]
[1732858713655,0.8291,3592.3,3591.9,2.78398]
[1732858716023,0.8291,3592.3,3592.0,2.78389]
[1732858716228,1.3072,3592.6,3592.0,2.78389]
[1732858716746,4.3072,3592.6,3592.0,2.78389]
[1732858718734,4.3072,3592.6,3592.1,0.06605706]
[1732858719058,7.1048576,3592.6,3592.1,0.06605706]
[1732858719220,7.09073,3592.6,3591.8,2.78411]
[1732858719417,7.09073,3592.6,3592.2,0.06603145]
[1732858719619,7.09073,3592.6,3591.9,2.78401]
[1732858719833,7.09073,3592.6,3592.3,0.06602318]
[1732858720033,7.09073,3592.6,3591.9,2.78401]
[1732858720238,7.09073,3592.6,3592.4,0.06600335]
[1732858720437,7.09073,3592.6,3591.9,2.78401]
[1732858720641,7.09073,3592.6,3592.5,0.06598352]
[1732858720924,7.09073,3592.6,3591.9,3.340837]
[1732858721151,7.09073,3592.6,3592.5,0.06598352]
[1732858721363,7.09073,3592.6,3591.9,3.340837]
[1732858721534,7.09073,3592.6,3591.9,2.78401]
[1732858722044,7.09073,3592.6,3592.0,0.06588321]
[1732858725075,1.3072,3592.6,3592.0,0.06588321]
[1732858725242,1.3072,3592.6,3592.2,2.78374]
[1732858725446,1.3072,3592.6,3592.3,2.78369]
[1732858725657,1.3072,3592.6,3592.3,3.41561719]
[1732858726047,1.3072,3592.6,3592.3,0.63192719]
[1732858726633,1.3072,3592.6,3592.3,0.06581216]
[1732858727065,1.3072,3592.6,3592.2,2.78377]
[1732858727366,1.3072,3592.6,3592.4,0.06573165]
[1732858727576,1.3072,3592.6,3592.5,0.06571183]
[1732858728146,1.3072,3592.6,3592.0,2.78395]
[1732858728470,0.0141276,3592.5,3592.1,0.70118714]
[1732858728698,0.0141276,3592.5,3592.1,0.06579114]
[1732858729034,0.0141276,3592.5,3591.9,2.78402]
[1732858729549,4.09076,3592.6,3591.9,2.78402]
[1732858729732,4.09076,3592.6,3592.0,0.0658023]
[1732858731681,0.0141276,3592.5,3592.0,0.0658023]
[1732858732679,2.78365,3592.4,3592.0,0.0658023]
[1732858732978,0.7949,3592.3,3592.0,0.0658023]
[1732858733284,8.33263597,3592.2,3592.1,0.06573045]
[1732858733782,0.55,3591.7,3591.1,2.78466]
[1732858733940,0.7699,3591.6,3591.1,2.78466]
[1732858734136,0.7699,3591.6,3591.2,0.06590897]
[1732858735338,0.7699,3591.6,3591.2,3.21134587]
[1732858735676,0.7699,3591.6,3591.3,0.06588913]
[1732858736491,0.5641276,3591.5,3591.3,0.06588913]
[1732858736695,2.78442,3591.4,3591.3,0.06588913]
[1732858737000,3.33442,3591.4,3590.5,3.59542]
[1732858737166,3.0,3591.3,3590.6,0.06602803]
[1732858737371,0.55,3591.2,3590.6,0.06602803]
[1732858737863,0.55,3591.2,3590.8,2.78488]
[1732858738402,0.55,3591.2,3590.9,0.06596849]
[1732858739982,0.55,3591.5,3590.9,2.78481]
[1732858740188,0.55,3591.5,3591.0,0.06594865]
[1732858741807,0.55,3591.5,3591.0,3.06979586]
[1732858741992,0.55,3591.5,3591.1,0.06592881]
[1732858742586,0.55,3591.5,3590.8,2.78487]
[1732858742781,0.55,3591.5,3590.9,0.06596849]
[1732858743325,0.5641276,3591.5,3590.9,0.06596849]
[1732858744228,3.3485176,3591.5,3590.9,0.06596849]
[1732858744430,2.78443,3591.4,3590.7,2.78496]
[1732858744632,0.55,3591.3,3591.0,0.06594865]
[1732858744790,0.55,3591.3,3590.7,3.423002]
[1732858744999,0.55,3591.3,3590.8,0.06666473]